Cogmind - Beta 13 @@@ ROGUE MODE // 2024.04.03 @ 22:37:07 Player: Cacho Result: Destroyed by as-37841 with Assembled Heavy Rifle Performance ------------- Evolutions (0) 0 Regions Visited (2) 400 Robots Destroyed (15) 75 Value Destroyed (289) 289 Prototype IDs (3) 60 Alien Tech Used (0) 0 Bonus (0) 0 TOTAL SCORE: 824 Bonus ------- None Cogmind --------- Core Integrity 0/250 Matter 259/300 Energy 56/100 System Corruption 3% Temperature Warning (329) Movement Rolling (135) Ox3 Location -10/Mines Parts ------- > --- POWER (1) -------- (None) > --- PROPULSION (2) --- Armored Wheel Armored Wheel > --- UTILITY (2) ------ High-capacity Storage Unit Light Armor Plating > --- WEAPON (2) ------- Autogun > --- INVENTORY (20) --- Improved Ion Engine Improved Ion Engine Armored Wheel Large Storage Unit Large Matter Pod (15) Light Armor Plating Light Armor Plating Light EM Pulse Cannon Advanced Beam Cannon Advanced Beam Cannon Autogun Autogun Mining Laser Peak State ------------ > --- POWER ------------ Light Nuclear Core > --- PROPULSION ------- Armored Wheel Armored Wheel > --- UTILITY ---------- High-capacity Storage Unit Hacking Suite > --- WEAPON ----------- Advanced Beam Cannon Autogun > --- INVENTORY -------- Improved Ion Engine Improved Ion Engine Armored Wheel Armored Wheel Large Storage Unit Large Matter Pod Light Armor Plating Light Armor Plating Light Armor Plating Light Armor Plating Light Armor Plating Light EM Pulse Cannon Advanced Beam Cannon Advanced Beam Cannon Autogun Autogun Autogun Mining Laser [Rating: 19] Favorites ----------- Power Light Nuclear Core Engine Improved Ion Engine Power Core Light Nuclear Core Propulsion Armored Wheel Leg Aluminum Leg Wheel Armored Wheel Utility Hacking Suite Device Weight Redist. System Storage High-capacity Storage Unit Hackware Hacking Suite Protection Light Armor Plating Weapon Advanced Beam Cannon Energy Gun Medium Laser Energy Cannon Advanced Beam Cannon Ballistic Gun Autogun Build | -11 -10 -10 ------- Run | Yrd Mat Min Slots Evolved . | . . . Power . | . . . Propulsion . | . . . Utility . | . . . Weapon . | . . . Parts Attached 19 | . 14 5 Power 2 | . 2 . Engine 1 | . 1 . Core 1 | . 1 . Reactor . | . . . Propulsion 4 | . 3 1 Treads . | . . . Leg . | . . . Wheel 4 | . 3 1 Hover . | . . . Flight . | . . . Utility 7 | . 4 3 Device 1 | . 1 . Storage 2 | . 2 . Processor . | . . . Hackware 1 | . 1 . Protection 3 | . . 3 Artifact . | . . . Weapon 6 | . 5 1 Energy Gun . | . . . Energy Cannon 3 | . 3 . Ballistic Gun 3 | . 2 1 Ballistic Cannon . | . . . Launcher . | . . . Special Weapon . | . . . Impact Weapon . | . . . Slashing Weapon . | . . . Piercing Weapon . | . . . Special Melee Weapon . | . . . Unidentified Prototypes 1 | . 1 . Parts Lost 6 | . . 6 Power 1 | . . 1 Propulsion 1 | . . 1 Utility 2 | . . 2 Weapon 2 | . . 2 Highest Loss Streak 6 | . . 6 To Critical Strikes . | . . . Average Slot Usage (%) 98 | . 98 92 Engine 2 | . 3 . Core 10 | . 10 7 Wheel 27 | . 27 28 Device 1 | . 1 . Storage 14 | . 14 14 Hackware 10 | . 10 . Energy Cannon 13 | . 13 14 Ballistic Gun 13 | . 13 14 Naked Turns . | . . . Heaviest Build 52 | 12 52 46 Greatest Support 30 | 20 30 12 Greatest Overweight (x) 3 | . 2 3 Average Overweight (x) 1 | . 1 3 Largest Inventory Capacity 20 | 8 20 20 Average Capacity 16 | 8 17 20 Most Carried 18 | 6 18 18 Average Carried 13 | 6 14 16 Final Capacity 20 | 8 20 20 Final Carried 18 | 6 18 13 Class Distribution -------------------- 100% | Mutant Dominant Class ---------------- Mutant | -10/Materials Mutant | -10/Mines Resources | -11 -10 -10 ----------- Run | Yrd Mat Min Matter Collected 507 | 158 349 . Remotely . | . . . Salvage Created 409 | . 379 30 Parts 38 | . 37 1 Haulers Intercepted 1 | . 1 . Recyclers Shooed . | . . . Parts Field Recycled . | . . . Retrieved Matter . | . . . Parts Self-Destructed . | . . . Prevented . | . . . Kills | -11 -10 -10 ------- Run | Yrd Mat Min Combat Hostiles Destroyed 12 | . 10 2 Guns 7 | . 7 . Cannons 5 | . 3 2 Classes Destroyed 6 | . 5 1 Hauler 1 | . 1 . Operator 1 | . 1 . Watcher 2 | . 2 . Swarmer 7 | . 6 1 Grunt 4 | . 4 . Assembled 1 | . . 1 Best Kill Streak 3 | . 3 2 Combat Bots Only 3 | . 3 2 Max Kills in Single Turn 1 | . 1 1 Gunslinging . | . . . Exploded . | . . . Melee . | . . . Uniques/NPCs Destroyed . | . . . Combat | -11 -10 -10 -------- Run | Yrd Mat Min Hostile Shots Fired 102 | . 43 59 Missed 22 | . 11 11 Damage Taken 1040 | . 316 724 Core 261 | . 88 173 Absorbed by Shields . | . . . Core Remaining (%) 100 | 100 . . Volleys Fired 43 | . 38 5 Largest 2 | . 2 2 Hottest 91 | . 91 91 Shots Fired 85 | . 75 10 Gun 43 | . 38 5 Cannon 42 | . 37 5 Launcher . | . . . Special . | . . . Kinetic 43 | . 38 5 Thermal 42 | . 37 5 Explosive . | . . . Electromagnetic . | . . . Robot Hit Streak 6 | . 6 5 Robot Miss Streak 5 | . 5 3 Penetration Max . | . . . Secondary Targets . | . . . Shots Hit Robots 47 | . 42 5 Core Hits 19 | . 15 4 Critical Kills 1 | . 1 . Critical Parts Destroyed 1 | . 1 . Critical Strikes 2 | . 2 . Meltdown 1 | . 1 . Destroy 1 | . 1 . Melee Attacks . | . . . Impact . | . . . Slashing . | . . . Piercing . | . . . Sneak Attacks . | . . . Combat Hostiles . | . . . Follow-up Attacks . | . . . Damage Inflicted 911 | . 740 171 Guns 387 | . 329 58 Cannons 515 | . 411 104 Explosions . | . . . Melee . | . . . Ramming 9 | . . 9 Kinetic 387 | . 329 58 Thermal 515 | . 411 104 Explosive . | . . . Electromagnetic . | . . . Impact . | . . . Slashing . | . . . Piercing . | . . . Highest Corruption 3 | . . 3 Average Corruption 3 | . . 3 Corruption Purged . | . . . Corruption Blocked . | . . . Effects 1 | . . 1 Matter Fused 1 | . . 1 Overload Shots . | . . . Overflow Damage 1 | . 1 . Projectiles 1 | . 1 . Explosions . | . . . Melee . | . . . Knockbacks . | . . . Impact . | . . . Kinetic . | . . . Secondary . | . . . Self-Inflicted Damage 4 | . . 4 Shots . | . . . Rammed 1 | . . 1 Targets Rammed 1 | . . 1 Kicked . | . . . Crushed . | . . . Highest Temperature 355 | . 355 355 Average Temperature 137 | . 131 199 Received Heat Transfer 342 | . 102 240 Effects 1 | . 1 . Short Circuit 1 | . 1 . Siege Activations . | . . . Robots Corrupted . | . . . Combat Hostiles . | . . . Parts Fried . | . . . Impact Corruptions . | . . . Robots Melted 1 | . 1 . Combat Hostiles . | . . . Parts Melted 1 | . . 1 Heat Transferred 925 | . 740 185 Parts Sabotaged . | . . . Parts Stolen . | . . . Parts Stripped . | . . . Power Chain Reactions . | . . . Alert | -11 -10 -10 ------- Run | Yrd Mat Min Peak Influence 254 | . 254 55 Initial 10 | . . 10 Average 67 | . 73 28 Maximum Alert Level 1 | . 1 . Low Security (%) 91 | 100 90 100 Level 1 8 | . 9 . Level 2 . | . . . Level 3 . | . . . Level 4 . | . . . Level 5 . | . . . High Security . | . . . Max Security . | . . . Squads Dispatched 1 | . 1 . Investigation 1 | . 1 . Extermination . | . . . Reinforcement . | . . . Assault . | . . . Garrison . | . . . Intercept . | . . . Searches Triggered . | . . . Construction Impeded . | . . . Haulers Reinforced . | . . . Active Scanning Responses . | . . . Cargo Convoy Interrupts . | . . . Stealth | -11 -10 -10 --------- Run | Yrd Mat Min Distress Signals . | . . . Communications Jammed . | . . . Distress Signals . | . . . Times Spotted 40 | . 17 23 Peak Tracking Total 23 | . 4 23 Tactical Retreats . | . . . Traps | -11 -10 -10 ------- Run | Yrd Mat Min Traps Triggered 2 | . 2 . Indirectly . | . . . Trap Hack Attempts . | . . . Triggered . | . . . Disarmed 1 | . 1 . Reprogrammed . | . . . Reused . | . . . Traps Extracted . | . . . Installed . | . . . Triggered . | . . . Machines | -11 -10 -10 ---------- Run | Yrd Mat Min Machines Disabled 2 | . 2 . Max in Single Turn 1 | . 1 . Machines Repaired . | . . . Machines Dismantled . | . . . Machines Sabotaged . | . . . Overloaded Fab Kills . | . . . Hacking | -11 -10 -10 --------- Run | Yrd Mat Min Machines Accessed 9 | . 9 . Terminals 7 | . 7 . Fabricators . | . . . Repair Stations . | . . . Recycling Units 2 | . 2 . Scanalyzers . | . . . Garrison Access . | . . . Total Hacks 21 | . 21 . Successful 13 | . 13 . Failed 8 | . 8 . Catastrophic 1 | . 1 . Database Lockouts . | . . . Manual . | . . . Terminals 17 | . 17 . Fabricators . | . . . Repair Stations . | . . . Recycling Units 4 | . 4 . Scanalyzers . | . . . Garrison Access . | . . . Terminal Hacks 12 | . 12 . Record 1 | . 1 . Robot Analysis 1 | . 1 . Prototype ID Bank 2 | . 2 . Repair Station Index 1 | . 1 . Locate Traps 1 | . 1 . Disarm Traps 1 | . 1 . Surveillance Status 1 | . 1 . Assault Status 1 | . 1 . Recall Investigation 1 | . 1 . Registered Components 1 | . 1 . Zone Layout 1 | . 1 . Fabricator Hacks . | . . . Repair Station Hacks . | . . . Recycling Unit Hacks 1 | . 1 . Retrieve Components 1 | . 1 . Scanalyzer . | . . . Garrison Access Hacks . | . . . Unauthorized Hacks . | . . . Terminals . | . . . Fabricators . | . . . Repair Stations . | . . . Recycling Units . | . . . Scanalyzers . | . . . Garrison Access . | . . . Data Cores Recovered . | . . . Used . | . . . Hacking Detections 6 | . 6 . Full Trace Events 1 | . 1 . Feedback Events . | . . . Feedback Blocked . | . . . Robot Schematics Acquired . | . . . Robots Built . | . . . Authchips . | . . . Time . | . . . Total Robot Build Rating . | . . . Part Schematics Acquired . | . . . Parts Built . | . . . Authchips . | . . . Time . | . . . Total Part Build Rating . | . . . Parts Repaired . | . . . Time . | . . . Parts Recycled . | . . . Recycled Matter . | . . . Retrieved Matter . | . . . Retrieved Components 2 | . 2 . Parts Scanalyzed . | . . . Part Schematics Acquired . | . . . Parts Damaged . | . . . Bothacking | -11 -10 -10 ------------ Run | Yrd Mat Min Used RIF Installer . | . . . Robots Hacked . | . . . Non-combat . | . . . Combat . | . . . Robot Hacks Applied . | . . . Relay Couplers Released . | . . . Fabnet Peak Effective % . | . . . Robots Rewired . | . . . Allies Hacked . | . . . Hacks Repelled . | . . . Allies | -11 -10 -10 -------- Run | Yrd Mat Min Total Allies . | . . . Largest Group . | . . . Highest-Rated Group . | . . . Highest-Rated Ally . | . . . Total Orders . | . . . Ally Attacks . | . . . Total Damage . | . . . Kills . | . . . Allies Corrupted . | . . . Allies Melted . | . . . Intel | -11 -10 -10 ------- Run | Yrd Mat Min Robot Analysis Total 1 | . 1 . Derelict Logs Recovered . | . . . Drone Launches . | . . . Drone Recoveries . | . . . Exploration | -11 -10 -10 ------------- Run | Yrd Mat Min Turns Passed 1111 | 75 1014 22 Spaces Moved 776 | 33 742 1 Core . | . . . Treads . | . . . Legs 41 | 33 8 . Wheels 735 | . 734 1 Hover . | . . . Flight . | . . . Fastest Speed 90 | 120 90 135 Average Speed 113 | 120 112 135 Slowest Speed 135 | 120 120 135 Overloaded Moves . | . . . Propulsion Burnouts . | . . . Robots Hopped . | . . . Cave-ins Triggered . | . . . Exploration Rate (%) 33 | 4 92 4 Regions Visited 2 Branch Regions 1 Pre-discovered Areas . | . . . Known Exits Taken . | . . . Unknown Exits Taken 2 | 1 1 . Scrap Searched . | . . . Spaces Dug . | . . . Terrain Destroyed . | . . . Melee . | . . . Projectile . | . . . AOE . | . . . Terrain Rammed . | . . . Walls Destroyed . | . . . Machines Disabled . | . . . Actions | -11 -10 -10 --------- Run | Yrd Mat Min Total 935 | 68 854 13 Wait 58 | 36 22 . Move 774 | 32 741 1 Hop . | . . . Pick Up 22 | . 22 . Fast Attach 8 | . 8 . Attach 8 | . 3 5 Detach . | . . . Swap 3 | . 3 . Drop 18 | . 17 1 Fire 43 | . 38 5 Melee . | . . . Ram 1 | . . 1 Kick . | . . . Crush . | . . . Escape Stasis . | . . . Rewire . | . . . Trap . | . . . Miscellaneous . | . . . Route ------- -11/Scrapyard -10/Materials (discovered 5 exits: [*Mat x3] / [*Min x2]) -10/Mines History --------- Turn | Location | Event 1 | -11/Scrapyard | Discovered new exit (range 3) 76 | -11/Scrapyard | Entered Materials 252 | -10/Materials | Discovered new exit (range 5) 319 | -10/Materials | Build established: Mutant 347 | -10/Materials | Discovered new exit (range 14) 640 | -10/Materials | Discovered new exit (range 15) 732 | -10/Materials | Discovered new exit (range 8) 814 | -10/Materials | Discovered new exit (range 9) 1090 | -10/Materials | Entered Mines 1091 | -10/Mines | Assembled infested the area 1092 | -10/Mines | Met a Derelict bent on vengeance 1104 | -10/Mines | Core integrity fell below 50% 1112 | -10/Mines | Core integrity fell below 20% 1112 | -10/Mines | Destroyed by as-37841 with Assembled Heavy Rifle Last Messages --------------- 01091_ ALERT: Infestation in the mines, dispatching Demolisher response squad. 01092_ Slammed into S-10 Pest. 01093_ S-10 Pest destroyed. 01096_ Flight Unit melted. 01096_ S-10 Pest destroyed. 01099_ as-47423 destroyed. 01100_ Lgt. Armor Plating destroyed. 01100_ S-10 Pest destroyed. 01102_ Lgt. Nuclear Core destroyed. 01102_ System corrupted by crushing effect (+3). 01103_ Autogun destroyed. 01105_ Knocked back. 01106_ System corrupted: Matter fused (-5). 01107_ as-66624 destroyed. 01108_ Arm. Wheel destroyed. 01110_ Knocked back. 01110_ Adv. Beam Cannon destroyed. 01110_ Lgt. Armor Plating destroyed. 01110_ Knocked back. Map ----- +----------------------------------------------------+ | ????????????????????????????????? | | ????????????????????????????????? | | ????????????????????????????????? | | ????????????????????????????????? | | ????????????????????????????????? | | ????????????????????????????????? | | ????????????????????????????????? | | ????????????????????????????????? | | ????????????????????????????????? | | ????????????????????????????????? | | ????????????????????????????????? | | ????????????????????????????????? | | ????????????????????????????????? | | ????????????????????????????????? | | ????????????????????????????????? | | ????????????????????????????????? | | ????????????????????????????????? | | ????????????????????????????????? | | ????????????????????????????????? | | ????????????????????????????????? | | ???????#########?#???? #????????? | | ???????# """ # #?? ##???????? | | ???????# """ # ## #???????? | | ???????# """aaa < #??????? | | ???????# aaaaa ?????????? | | ???????#@ aaa[#????????????????? | | ???????# aaaaa%#????????????????? | | ???????# %aa[#????????????????? | | ???????# #????????????????? | | ???????#########????????????????? | | ????????????????????????????????? | | ????????????????????????????????? | | ????????????????????????????????? | | ????????????????????????????????? | | ????????????????????????????????? | | ????????????????????????????????? | | ????????????????????????????????? | | ????????????????????????????????? | | ????????????????????????????????? | | ????????????????????????????????? | | ????????????????????????????????? | | ????????????????????????????????? | | ????????????????????????????????? | | ????????????????????????????????? | | ????????????????????????????????? | | ????????????????????????????????? | | ????????????????????????????????? | | ????????????????????????????????? | | ????????????????????????????????? | | ????????????????????????????????? | +----------------------------------------------------+ Best States ------------- Heat Dissipation 25 Energy Generation 14 Energy Capacity 265 Matter Stores 300 Matter Capacity 300 Sight Range 16 Terrain Scan Density 10 Additional Mass Support 6 Armor Coverage 150 Evasion (%) 55 Offensive Hacking 10 Item Schematics ----------------- None Robot Schematics ------------------ None Fabricated ------------ Nothing Alien Tech Used ----------------- None Achievements -------------- None Challenges ------------ None Game ------ Seed CompactSurgeWheel Manual? 0 Play Time 00:24:24 Cumulative 18.6 hours Start 2024.04.02 @ 23:49:04 End 2024.04.03 @ 22:37:07 Sessions 3 Manual Loads 0 Difficulty Rogue Special Mode None Game No. 15 Rogue 14 Adventurer 1 Explorer 0 Win Type - Total 0 Types 0/0/0/0/0/0/0/0/0 Lore% 18 Gallery% 21 Achievement% 18 Wizard Run 0 Options --------- Layout 0 ASCII 1 Keyboard 0 Movement Mouse Keybinds 0 Fullscreen 2 Font 18/SmallcapsGlow Map View 76x50 Zoom Use 0% Tactical HUD 1 Map Filters NONE Filters NONE Steam 1 RUN: 22baffac-2bb1-42d9-a16d-d0f796db0bc2